bitfinex/quotes_SOLUSD_20220228
["timestamp","ask_amount","ask_price","bid_price","bid_amount"]
[1646030579656,6.0,86.574,86.491,56.16723766]
[1646030579856,6.0,86.574,86.492,2.97557579]
[1646030580056,6.0,86.574,86.493,6.0]
[1646030580456,6.0,86.576,86.493,6.0]
[1646030580656,55.8575802,86.577,86.493,6.0]
[1646030580857,6.0,86.576,86.493,121.3]
[1646030581058,14.9939427,86.609,86.493,121.3]
[1646030581059,1.65255809,86.624,86.501,118.37031028]
[1646030581259,74.95869522,86.624,86.503,115.3]
[1646030581457,91.84257031,86.624,86.504,8.80018744]
[1646030581658,74.95869522,86.624,86.504,8.80018744]
[1646030581855,61.38267938,86.623,86.505,3.87883389]
[1646030582055,115.3,86.622,86.506,6.0]
[1646030582260,115.3,86.619,86.506,6.0]
[1646030582557,1.68469065,86.616,86.506,6.0]
[1646030582757,1.87356816,86.613,86.506,6.0]
[1646030582955,115.3,86.609,86.506,6.0]
[1646030583158,115.3,86.607,86.506,6.0]
[1646030583362,115.3,86.605,86.506,6.0]
[1646030583562,115.3,86.603,86.511,2.67222278]
[1646030583767,115.3,86.599,86.511,2.67222278]
[1646030583967,115.3,86.595,86.511,2.67222278]
[1646030584163,115.3,86.593,86.511,2.67222278]
[1646030584363,115.3,86.591,86.511,2.67222278]
[1646030584564,6.0,86.592,86.511,2.67222278]
[1646030584565,115.3,86.589,86.511,2.67222278]
[1646030584767,6.0,86.588,86.511,2.67222278]
[1646030584985,6.0,86.588,86.512,6.0]
[1646030585186,6.0,86.588,86.514,2.54020608]
[1646030585387,121.3,86.595,86.515,6.0]
[1646030586986,121.3,86.595,86.514,2.54020608]
[1646030587185,121.3,86.595,86.515,6.0]
[1646030587384,121.3,86.595,86.514,2.54020608]
[1646030588587,16.64,86.59,86.513,23.5262]
[1646030588786,1.60008008,86.588,86.513,23.5262]
[1646030588986,115.3,86.586,86.513,23.5262]
[1646030589186,115.3,86.584,86.513,23.5262]
[1646030589387,115.3,86.579,86.514,24.93196185]
[1646030589590,12.04647375,86.578,86.514,24.93196185]
[1646030590094,14.79326296,86.578,86.514,24.93196185]
[1646030590288,2.74678921,86.577,86.515,2.3942629]
[1646030590488,16.64,86.58,86.515,2.3942629]
[1646030590689,6.0,86.579,86.515,2.3942629]
[1646030591088,2.74678921,86.58,86.515,2.3942629]
[1646030591288,2.74678921,86.606,86.516,8.74678921]
[1646030591488,4.621,86.619,86.516,8.74678921]
[1646030591689,4.62,86.623,86.517,2.74678921]
[1646030591988,16.64,86.62,86.518,6.0]
[1646030592193,164.18299117,86.619,86.52,17.3399]
[1646030592391,6.0,86.618,86.522,2.80901988]
[1646030592589,6.0,86.618,86.523,6.0]
[1646030592991,6.0,86.618,86.525,2.38766376]
[1646030593189,6.0,86.618,86.526,6.0]
[1646030593592,6.0,86.618,86.531,2.31351512]
[1646030593789,6.0,86.618,86.532,6.0]
[1646030594392,6.0,86.618,86.526,6.0]
[1646030595598,6.0,86.618,86.54,17.3358]
[1646030595795,48.88299117,86.619,86.541,38.73692185]
[1646030595994,2.74678921,86.642,86.542,3.07255485]
[1646030596194,6.0,86.631,86.543,6.0]
[1646030596396,22.64,86.64,86.543,6.0]
[1646030596595,4.619,86.639,86.543,6.0]
[1646030596795,6.0,86.638,86.543,6.0]
[1646030596997,47.7488323,86.637,86.543,6.0]
[1646030597397,6.0,86.636,86.543,6.0]
[1646030597596,6.0,86.636,86.551,2.86685181]
[1646030597797,47.7488323,86.637,86.553,2.84694734]
[1646030597997,2.74678921,86.659,86.555,115.3]
[1646030598196,6.0,86.658,86.557,115.3]
[1646030598396,6.0,86.667,86.558,8.5490427]
[1646030598596,6.0,86.667,86.56,17.3303]
[1646030598798,6.0,86.667,86.561,123.5710296]
[1646030598996,58.76579207,86.666,86.562,2.34014618]
[1646030599296,6.0,86.665,86.564,3.06127988]
[1646030599497,6.0,86.665,86.565,6.0]
[1646030599900,6.0,86.665,86.567,27.90140801]
[1646030600098,6.0,86.665,86.568,8.97834624]
[1646030600500,6.0,86.665,86.58,17.3265]
[1646030600698,6.0,86.665,86.582,2.82950684]
[1646030600898,6.0,86.665,86.583,6.0]
[1646030602601,6.0,86.665,86.59,17.3252]
[1646030602800,6.0,86.665,86.591,8.33404511]
[1646030604603,6.0,86.665,86.591,6.0]
[1646030604802,6.0,86.665,86.591,8.6444783]
[1646030605003,6.0,86.665,86.591,6.0]
[1646030605207,6.0,86.665,86.583,6.0]
[1646030605404,47.4828,86.676,86.583,6.0]
[1646030605802,22.54212452,86.695,86.6,17.3233]
[1646030606102,115.3,86.691,86.602,7.6194223]
[1646030606302,6.0,86.69,86.603,6.0]
[1646030606902,6.0,86.69,86.605,3.05774741]
[1646030607102,6.0,86.69,86.606,6.0]
[1646030607303,28.54212452,86.69,86.611,2.28692324]
[1646030607502,45.18212452,86.69,86.611,2.28692324]
[1646030607706,4.616,86.689,86.611,2.28692324]
[1646030607902,6.0,86.688,86.611,2.28692324]
[1646030608103,115.3,86.687,86.611,2.28692324]
[1646030608305,115.3,86.679,86.604,24.3859]
[1646030608503,10.616,86.678,86.604,24.3859]
[1646030608903,22.54212452,86.677,86.604,24.3859]
[1646030609105,10.616,86.676,86.604,24.3859]
[1646030609303,115.3,86.675,86.604,24.3859]
[1646030609504,115.3,86.673,86.604,24.3859]
[1646030609704,115.3,86.671,86.604,24.3859]
[1646030610006,6.0,86.67,86.604,24.3859]
[1646030610404,115.3,86.669,86.604,24.3859]
[1646030610604,115.3,86.667,86.604,24.3859]
[1646030610805,115.3,86.667,86.59,17.3244]
[1646030610806,1.61777151,86.664,86.572,7.24792494]
[1646030611004,116.75464295,86.659,86.572,7.24792494]
[1646030611203,115.3,86.657,86.573,24.6922]
[1646030611404,115.3,86.655,86.582,23.0677991]
[1646030611609,10.617,86.654,86.582,23.0677991]
[1646030611805,55.09336238,86.656,86.59,17.3256]
[1646030612005,6.0,86.653,86.59,17.3256]
[1646030612205,55.09336238,86.656,86.59,17.3256]
[1646030613308,55.09336238,86.656,86.582,26.17704815]
[1646030613707,115.3,86.655,86.582,23.0677991]
[1646030613907,115.3,86.653,86.582,23.0677991]
[1646030614108,131.94,86.65,86.582,23.0677991]
[1646030614308,6.0,86.649,86.573,24.6922]
[1646030614510,12.42008306,86.649,86.573,24.6922]
[1646030615308,12.42008306,86.649,86.572,4.616]
[1646030615309,1.45972696,86.647,86.572,4.616]
[1646030615513,1.65657934,86.644,86.572,4.616]
[1646030615715,115.3,86.639,86.572,4.616]
[1646030615909,115.3,86.637,86.551,24.415]
[1646030616109,115.3,86.635,86.551,24.415]
[1646030616309,115.3,86.633,86.552,26.21347842]
[1646030616612,115.3,86.627,86.552,26.21347842]
[1646030616908,1.55471197,86.624,86.552,26.21347842]
[1646030617109,115.3,86.622,86.552,26.21347842]
[1646030617309,115.3,86.62,86.552,26.21347842]
[1646030617509,10.619,86.619,86.552,26.21347842]
[1646030617711,6.0,86.619,86.552,26.21347842]
[1646030618311,6.0,86.619,86.551,24.415]
[1646030618511,121.3,86.62,86.551,24.415]
[1646030619011,4.619,86.619,86.551,24.415]
[1646030619210,6.0,86.618,86.551,24.415]
[1646030619411,4.619,86.617,86.552,24.79648701]
[1646030619613,115.3,86.615,86.552,24.79648701]
[1646030619813,6.0,86.614,86.552,24.79648701]
[1646030620014,21.259,86.62,86.552,24.79648701]
[1646030620216,6.0,86.619,86.552,24.79648701]
[1646030620515,4.619,86.618,86.552,24.79648701]
[1646030620716,6.0,86.617,86.552,24.79648701]
[1646030621316,4.619,86.619,86.552,24.79648701]
[1646030621317,6.0,86.618,86.552,24.79648701]
[1646030621915,115.3,86.617,86.551,24.415]
[1646030622134,115.3,86.615,86.551,24.415]
[1646030622415,115.3,86.609,86.551,24.415]
[1646030622615,115.3,86.607,86.551,24.415]
[1646030622814,115.3,86.605,86.551,24.415]
[1646030623018,4.62,86.604,86.551,24.415]
[1646030623218,170.94790468,86.601,86.551,24.415]
[1646030623419,6.0,86.6,86.551,24.415]
[1646030623616,6.0,86.6,86.543,23.7125]
[1646030625018,22.5767,86.613,86.544,2.39975512]
[1646030625419,6.0,86.612,86.544,2.39975512]
[1646030625821,47.18738699,86.611,86.544,2.39975512]
[1646030626020,6.0,86.61,86.544,2.39975512]
[1646030627020,115.3,86.609,86.543,23.7125]
[1646030627220,10.62,86.608,86.543,23.7125]
[1646030629224,6.0,86.608,86.543,23.7125]
[1646030629424,6.0,86.609,86.543,23.7125]
[1646030629624,47.18738699,86.611,86.544,2.52901994]
[1646030630425,47.18738699,86.611,86.543,23.7125]
[1646030630625,47.18738699,86.611,86.544,2.81960581]
[1646030630825,6.0,86.61,86.544,2.81960581]
[1646030631226,47.18738699,86.611,86.545,6.0]
[1646030631427,47.18738699,86.611,86.544,2.81960581]
[1646030632529,6.0,86.61,86.544,2.81960581]
[1646030632731,115.3,86.609,86.543,23.7125]
[1646030632931,115.3,86.607,86.543,23.7125]
[1646030633128,1.60939275,86.604,86.539,22.9493]
[1646030633328,115.3,86.602,86.539,22.9493]
[1646030633533,115.3,86.6,86.539,22.9493]
[1646030633745,115.3,86.598,86.539,22.9493]
[1646030633943,115.3,86.596,86.539,22.9493]
[1646030634145,115.3,86.594,86.517,24.13786285]
[1646030634345,115.3,86.592,86.518,22.7871]
[1646030634545,121.3,86.591,86.518,22.7871]
[1646030634745,115.3,86.591,86.518,22.7871]
[1646030634945,6.0,86.59,86.518,22.7871]
[1646030635145,115.3,86.589,86.518,22.7871]
[1646030635347,6.0,86.59,86.49,17.3443]
[1646030635348,1.50846433,86.586,86.49,17.3443]
[1646030635549,115.3,86.579,86.484,24.1932]
[1646030635748,6.03335911,86.578,86.484,24.1932]
[1646030635947,1.85160227,86.576,86.484,24.1932]
[1646030636152,1.38454869,86.573,86.484,24.1932]
[1646030636347,116.66729017,86.559,86.484,24.1932]
[1646030636548,16.64,86.56,86.47,24.7807]
[1646030636549,117.11071461,86.549,86.47,24.7807]
[1646030636747,1.42211102,86.546,86.47,24.7807]
[1646030636950,1.40286719,86.543,86.451,23.8609]
[1646030637148,115.3,86.529,86.451,23.8609]
[1646030637348,16.64,86.52,86.451,23.8609]
[1646030637548,59.86348682,86.519,86.452,23.71870451]
[1646030637750,59.86348682,86.519,86.453,2.37189432]
[1646030638849,64.48848682,86.519,86.453,2.37189432]
[1646030639349,115.3,86.518,86.451,23.8609]
[1646030639551,115.3,86.516,86.451,23.8609]
[1646030639751,115.3,86.514,86.451,23.8609]
[1646030639951,115.3,86.512,86.451,23.8609]
[1646030640150,121.3,86.511,86.451,23.8609]
[1646030640352,10.625,86.51,86.451,23.8609]
[1646030643763,6.0,86.51,86.452,2.908941]
[1646030643955,6.0,86.518,86.452,2.908941]
[1646030644963,1.50903972,86.516,86.428,4.625]
[1646030645157,4.625,86.515,86.421,25.44707498]
[1646030645356,115.3,86.513,86.422,6.0]
[1646030645557,115.3,86.509,86.422,6.0]
[1646030645757,115.3,86.507,86.423,31.51956616]
[1646030645956,12.44977543,86.508,86.424,6.0]
[1646030645957,115.3,86.505,86.424,6.0]
[1646030646157,115.3,86.499,86.424,6.0]
[1646030646360,115.3,86.497,86.424,6.0]
[1646030646560,115.3,86.495,86.422,6.0]
[1646030646758,115.3,86.493,86.422,6.0]
[1646030646958,16.64,86.49,86.422,6.0]
[1646030647160,10.626,86.489,86.422,6.0]
[1646030647361,17.3663,86.48,86.39,17.3643]
[1646030647660,115.3,86.469,86.381,2.86297925]
[1646030647861,115.3,86.467,86.381,2.86297925]
[1646030648058,115.3,86.465,86.381,2.86297925]
[1646030648258,115.3,86.463,86.378,46.5787]
[1646030648458,115.3,86.463,86.372,31.20983653]
[1646030648459,115.3,86.457,86.379,6.0]
[1646030648660,119.928,86.457,86.374,6.0]
[1646030648866,115.3,86.455,86.374,6.0]
[1646030649061,115.3,86.453,86.374,6.0]
[1646030649264,115.3,86.451,86.373,6.0]
[1646030649462,115.3,86.449,86.373,6.0]
[1646030649662,6.0,86.448,86.373,8.38166951]
[1646030650162,121.3,86.452,86.373,8.38166951]
[1646030650764,16.64,86.45,86.373,2.38166951]
[1646030650963,6.0,86.449,86.373,2.38166951]
[1646030651164,6.0,86.449,86.38,17.368]
[1646030651369,6.0,86.448,86.381,2.79629086]
[1646030651564,1.58212176,86.486,86.381,2.79629086]
[1646030651565,6.0,86.457,86.381,2.79629086]
[1646030651864,6.0,86.457,86.382,2.74678921]
[1646030652065,6.0,86.457,86.383,6.0]
[1646030652264,6.0,86.485,86.39,17.3642]
[1646030652464,6.0,86.498,86.391,55.9661764]
[1646030652666,6.0,86.498,86.392,2.69777575]
[1646030652868,6.0,86.507,86.393,6.0]
[1646030653066,49.90491224,86.506,86.393,8.73058285]
[1646030653267,6.0,86.505,86.395,2.72974206]
[1646030653466,6.0,86.505,86.42,17.3584]
[1646030653666,6.0,86.505,86.422,1.34154762]
[1646030654066,6.0,86.505,86.423,6.0]
[1646030655266,6.0,86.505,86.422,1.34154762]
[1646030655667,6.0,86.505,86.43,17.3578]
[1646030655867,6.0,86.505,86.431,2.46483322]
[1646030656472,6.0,86.505,86.422,1.34154762]
[1646030656671,6.0,86.505,86.423,6.0]
[1646030657470,115.3,86.504,86.424,2.49407548]
[1646030657670,115.3,86.502,86.411,3.08444948]
[1646030657871,115.3,86.499,86.392,2.9804447]
[1646030658072,115.3,86.497,86.392,2.9804447]
[1646030658272,115.3,86.495,86.392,2.9804447]
[1646030658474,1.50393013,86.492,86.393,31.50809346]
[1646030658676,131.94,86.49,86.393,31.50809346]
[1646030658879,17.3668,86.48,86.393,31.50809346]
[1646030659075,53.69719533,86.478,86.393,31.50809346]
[1646030659274,115.3,86.476,86.393,31.50809346]
[1646030659474,115.3,86.474,86.393,31.50809346]
[1646030659675,115.3,86.472,86.393,31.50809346]
[1646030659874,115.3,86.47,86.38,17.3664]
[1646030660075,1.35495994,86.467,86.38,17.3664]
[1646030660276,1.68007265,86.464,86.38,17.3664]
[1646030660477,1.54770224,86.461,86.38,17.3664]
[1646030660676,115.3,86.459,86.373,2.89466756]
[1646030660875,115.3,86.457,86.379,52.53848675]
[1646030661075,115.3,86.455,86.379,52.53848675]
[1646030661276,164.92890505,86.452,86.379,52.53848675]
[1646030661476,6.0,86.451,86.38,2.68013414]
[1646030661876,49.62890505,86.452,86.38,17.3681]
[1646030662076,49.62890505,86.452,86.381,8.30745036]
[1646030663275,164.92890505,86.452,86.39,17.3659]
[1646030663479,6.0,86.451,86.381,2.30745036]
[1646030664675,49.62890505,86.452,86.381,2.30745036]
[1646030664878,49.62890505,86.452,86.382,6.0]
[1646030665679,6.0,86.451,86.39,17.3657]
[1646030665879,6.0,86.45,86.39,17.3657]
[1646030666078,6.0,86.451,86.39,17.3657]
[1646030667582,49.62890505,86.452,86.391,2.74256255]
[1646030667781,2.74678921,86.478,86.391,2.74256255]
[1646030667982,6.0,86.477,86.401,2.6760677]
[1646030668181,2.74678921,86.473,86.401,2.6760677]
[1646030668382,6.0,86.472,86.402,6.0]
[1646030668885,47.34742281,86.473,86.402,6.0]
[1646030669081,6.0,86.472,86.382,10.627]
[1646030669287,6.0,86.472,86.384,2.42827508]
[1646030669482,6.0,86.472,86.411,2.8204693]
[1646030669682,3.01,86.56,86.411,2.8204693]
[1646030669683,6.0,86.496,86.412,6.0]
[1646030669883,4.626,86.513,86.413,2.49163429]
[1646030670084,2.74678921,86.529,86.416,2.4341024]
[1646030670286,4.625,86.528,86.417,10.625]
[1646030670584,47.79766183,86.527,86.419,2.43374336]
[1646030670784,47.79766183,86.527,86.42,10.625]
[1646030671085,4.625,86.526,86.421,115.3]
[1646030671285,47.79766183,86.527,86.431,2.71010669]
[1646030671486,47.79766183,86.527,86.432,33.1922]
[1646030671685,47.79766183,86.527,86.433,2.96728441]
[1646030671889,47.79766183,86.527,86.434,6.0]
[1646030672087,47.79766183,86.527,86.436,2.92684409]
[1646030672285,4.625,86.549,86.46,17.3503]
[1646030672486,4.624,86.555,86.461,8.63424954]
[1646030672687,17.55503549,86.567,86.463,115.3]
[1646030672888,6.0,86.566,86.464,10.623]
[1646030673085,6.0,86.566,86.464,13.36978921]
[1646030673288,45.43756013,86.565,86.465,22.84480685]
[1646030673485,6.0,86.564,86.466,128.89589016]
[1646030673687,6.0,86.564,86.466,125.923]
[1646030673888,6.0,86.564,86.467,2.46729559]
[1646030674087,6.0,86.564,86.468,10.623]
[1646030674287,119.923,86.563,86.467,2.46729559]
[1646030674489,115.3,86.561,86.467,2.46729559]
[1646030674690,10.623,86.56,86.468,6.0]
[1646030674910,10.623,86.56,86.467,2.46729559]
[1646030675088,24.20462199,86.559,86.467,2.46729559]
[1646030675288,10.623,86.558,86.467,2.46729559]
[1646030675488,10.623,86.558,86.47,17.35]
[1646030675689,10.623,86.558,86.471,2.35357366]
[1646030675889,6.0,86.558,86.472,6.0]
[1646030676089,4.623,86.557,86.472,6.0]
[1646030676288,6.0,86.556,86.467,6.0]
[1646030676888,6.0,86.563,86.467,6.0]
[1646030677090,6.0,86.564,86.467,6.0]
[1646030677291,6.0,86.564,86.468,4.623]
[1646030677490,6.0,86.564,86.48,17.3463]
[1646030677691,6.0,86.564,86.481,8.67715301]
[1646030678090,6.0,86.578,86.481,6.0]
[1646030678289,6.0,86.588,86.482,22.6936]
[1646030678490,4.622,86.587,86.483,8.56509578]
[1646030678699,6.0,86.586,86.483,8.56509578]
[1646030678891,54.73906408,86.585,86.483,8.56509578]
[1646030679091,6.0,86.584,86.483,8.56509578]
[1646030679295,4.622,86.583,86.483,8.56509578]
[1646030679492,6.0,86.582,86.5,17.3436]
[1646030679695,6.0,86.582,86.502,9.7065773]
[1646030679892,6.0,86.583,86.503,8.81414114]
[1646030680292,28.82562199,86.582,86.503,2.81414114]
[1646030680494,6.0,86.581,86.503,2.81414114]
[1646030680693,6.0,86.581,86.502,9.7065773]
[1646030680694,4.622,86.58,86.51,17.342]
[1646030680893,6.0,86.579,86.51,17.342]
[1646030681093,4.621,86.578,86.511,3.05180715]
[1646030681297,6.0,86.577,86.511,3.05180715]
[1646030681499,6.0,86.579,86.511,3.05180715]
[1646030681897,6.0,86.584,86.511,3.05180715]
[1646030682300,24.20462199,86.583,86.511,3.05180715]
[1646030682518,6.0,86.582,86.511,3.05180715]
[1646030682918,17.53660469,86.581,86.511,3.05180715]
[1646030683120,1.44060462,86.579,86.49,17.3442]
[1646030683319,1.45525161,86.576,86.483,3.07797416]
[1646030683519,1.7112551,86.573,86.483,3.07797416]
[1646030683720,6.0,86.572,86.483,3.07797416]
[1646030683921,4.622,86.571,86.483,3.07797416]
[1646030684122,6.0,86.57,86.484,30.37529732]
[1646030684320,4.622,86.569,86.484,30.37529732]
[1646030684520,6.0,86.568,86.484,30.37529732]
[1646030684720,4.622,86.567,86.484,30.37529732]
[1646030684923,6.0,86.566,86.484,30.37529732]
[1646030685520,6.0,86.568,86.484,30.37529732]
[1646030685722,6.0,86.569,86.49,17.346]
[1646030685922,6.0,86.584,86.491,8.94163239]
[1646030686122,6.0,86.584,86.491,2.94163239]
[1646030686322,6.0,86.584,86.492,6.0]
[1646030686522,6.0,86.584,86.486,2.45113189]
[1646030686721,17.55503549,86.583,86.487,6.0]
[1646030686926,6.0,86.582,86.487,6.0]
[1646030687524,4.622,86.581,86.5,17.3438]
[1646030687723,6.0,86.58,86.501,2.8701119]
[1646030687924,4.622,86.579,86.501,2.8701119]
[1646030688122,6.0,86.578,86.501,2.8701119]
[1646030688523,6.0,86.578,86.487,6.0]
[1646030688723,6.0,86.578,86.485,2.35128471]
[1646030688724,6.0,86.582,86.486,6.0]
[1646030689124,6.0,86.582,86.488,2.74678921]
[1646030689425,6.0,86.582,86.511,4.57882278]
[1646030689623,6.0,86.584,86.511,4.57882278]
[1646030689823,6.0,86.584,86.512,6.0]
[1646030690027,6.0,86.584,86.511,4.57882278]
[1646030690228,6.0,86.584,86.511,2.17608683]
[1646030690425,132.85503549,86.583,86.511,2.17608683]
[1646030690626,6.0,86.582,86.511,2.17608683]
[1646030691226,6.0,86.583,86.511,2.17608683]
[1646030691927,6.0,86.583,86.51,17.3416]
[1646030692126,6.0,86.583,86.49,17.3443]
[1646030692127,13.89,86.58,86.49,17.3443]
[1646030692326,12.26090362,86.579,86.47,23.4116]
[1646030692529,115.3,86.569,86.471,2.87340449]
[1646030692728,13.89,86.56,86.471,2.87340449]
[1646030692927,54.82309074,86.559,86.472,25.71043708]
[1646030693128,54.82309074,86.559,86.473,27.47105201]
[1646030693328,54.82309074,86.559,86.474,2.37215718]
[1646030693525,48.82309074,86.559,86.474,2.37215718]
[1646030693726,48.82309074,86.559,86.475,6.0]
[1646030694427,6.0,86.558,86.475,6.0]
[1646030694628,6.0,86.558,86.481,2.70040689]
[1646030694834,6.0,86.558,86.482,6.0]
[1646030695730,48.82309074,86.559,86.483,6.0]
[1646030696432,48.82309074,86.559,86.482,6.0]
[1646030696631,6.0,86.558,86.482,6.0]
[1646030696833,2.74678921,86.578,86.49,17.3459]
[1646030697032,2.74678921,86.578,86.482,6.0]
[1646030697033,6.0,86.577,86.491,8.39412711]
[1646030697237,6.0,86.586,86.492,115.3]
[1646030697434,6.0,86.586,86.493,6.0]
[1646030697635,6.0,86.6,86.495,2.81972525]
[1646030697833,54.63581745,86.599,86.496,6.0]
[1646030698034,6.0,86.598,86.496,6.0]
[1646030698234,54.63581745,86.599,86.497,2.74678921]
[1646030698434,54.63581745,86.599,86.51,17.338]
[1646030698736,2.74678921,86.598,86.512,2.30654999]
[1646030699033,4.621,86.597,86.512,2.30654999]
[1646030699434,2.74678921,86.596,86.512,2.30654999]
[1646030699634,10.621,86.595,86.512,2.30654999]
[1646030699835,6.0,86.595,86.512,2.30654999]
[1646030700637,6.0,86.595,86.513,6.0]
[1646030701036,6.0,86.595,86.52,17.3397]
[1646030701245,115.3,86.594,86.52,17.3397]
[1646030701449,1.46773182,86.592,86.511,22.7529]
[1646030701639,1.6446055,86.589,86.511,22.7529]
[1646030701840,115.3,86.587,86.511,22.7529]
[1646030702042,1.3891804,86.578,86.511,22.7529]
[1646030702239,115.3,86.576,86.511,22.7529]
[1646030702439,165.07280284,86.573,86.511,22.7529]
[1646030702740,6.0,86.572,86.511,22.7529]
[1646030703538,2.74678921,86.571,86.511,22.7529]
[1646030703738,6.0,86.57,86.511,22.7529]
[1646030704237,8.74678921,86.57,86.511,22.7529]
[1646030707342,115.3,86.569,86.49,17.346]
[1646030707538,115.3,86.567,86.475,46.3168]
[1646030707739,1.85125903,86.564,86.475,46.3168]
[1646030708041,10.623,86.566,86.475,46.3168]
[1646030708042,1.81357489,86.561,86.475,46.3168]
[1646030708239,10.623,86.56,86.477,2.84839434]
[1646030708439,6.0,86.563,86.477,2.84839434]
[1646030708440,2.74678921,86.563,86.478,6.0]
[1646030708638,10.623,86.562,86.478,6.0]
[1646030708838,6.0,86.562,86.478,8.74678921]
[1646030709038,6.0,86.562,86.481,2.41961366]
[1646030709241,6.0,86.571,86.483,115.3]
[1646030709439,1.41724834,86.609,86.486,2.35046015]
[1646030709638,46.5941,86.61,86.501,115.3]
[1646030709840,46.5941,86.61,86.504,3.02851619]
[1646030710039,46.5941,86.61,86.506,115.3]
[1646030710240,46.5941,86.61,86.51,13.89]
[1646030710441,48.41244877,86.609,86.511,29.6033]
[1646030710743,48.41244877,86.609,86.512,2.75589001]
[1646030710941,48.41244877,86.609,86.514,2.38862048]
[1646030711141,48.41244877,86.609,86.515,6.0]
[1646030711342,6.0,86.608,86.515,6.0]
[1646030711540,6.0,86.608,86.53,17.3354]
[1646030711741,6.0,86.608,86.531,8.65036576]
[1646030712142,6.0,86.608,86.531,6.0]
[1646030712341,6.0,86.608,86.522,6.0]
[1646030713543,24.20462199,86.607,86.522,6.0]
[1646030713744,6.0,86.606,86.522,6.0]
[1646030713945,6.0,86.606,86.515,6.0]
[1646030714145,17.53660469,86.605,86.515,6.0]
[1646030714346,6.0,86.604,86.515,6.0]
[1646030714547,6.0,86.604,86.52,17.3388]
[1646030714747,6.0,86.604,86.521,9.04351855]
[1646030714949,6.0,86.604,86.522,6.0]
[1646030715151,6.0,86.604,86.515,6.0]
[1646030715951,6.0,86.608,86.515,6.0]
[1646030716549,6.0,86.608,86.53,17.3374]
[1646030716749,6.0,86.608,86.531,6.0]
[1646030717349,17.53660469,86.607,86.53,17.3374]
[1646030717550,17.53660469,86.607,86.513,23.3446]
[1646030717551,1.85762576,86.598,86.513,23.3446]
[1646030717750,115.3,86.596,86.513,23.3446]
[1646030717951,115.3,86.594,86.513,23.3446]
[1646030718149,115.3,86.592,86.513,23.3446]
[1646030718350,1.46079654,86.589,86.513,23.3446]
[1646030718554,115.3,86.587,86.513,23.3446]
[1646030718751,8.74678921,86.591,86.513,23.3446]
[1646030718752,115.3,86.577,86.513,23.3446]
[1646030719052,115.3,86.575,86.513,23.3446]
[1646030719352,121.3,86.574,86.513,23.3446]
[1646030719552,121.3,86.574,86.49,17.3449]
[1646030719756,115.3,86.569,86.478,2.69756894]
[1646030719955,115.3,86.567,86.474,4.623]
[1646030720153,1.81941049,86.564,86.474,4.623]
[1646030720355,115.3,86.562,86.474,4.623]
[1646030720552,1.6947086,86.559,86.474,4.623]
[1646030720752,115.3,86.557,86.474,4.623]
[1646030720954,1.54884106,86.554,86.474,4.623]
[1646030721155,49.12575075,86.552,86.474,4.623]
[1646030721455,17.3522,86.54,86.474,4.623]
[1646030721654,6.0,86.539,86.474,4.623]
[1646030721854,8.74678921,86.539,86.474,4.623]
[1646030722554,6.0,86.539,86.474,4.623]